bitfinex-derivatives/quotes_ETHF0:USTF0_20250123
["timestamp","ask_amount","ask_price","bid_price","bid_amount"]
[1737620393021,0.61965,3229.7,3229.4,0.4782]
[1737620393223,3.96677017,3229.7,3229.4,1.09789]
[1737620394532,3.2078,3229.8,3229.5,0.507]
[1737620394724,0.00463929,3229.9,3229.7,0.61964]
[1737620395032,0.00463929,3229.9,3229.5,0.507]
[1737620395233,0.00463929,3229.9,3229.5,2.93459183]
[1737620395429,0.00463929,3229.9,3229.8,0.61962]
[1737620395629,0.00463929,3229.9,3229.8,41.41962]
[1737620396934,0.00463929,3229.9,3229.8,40.8]
[1737620397138,0.62423929,3229.9,3229.8,40.8]
[1737620397436,0.00463929,3229.9,3229.8,40.8]
[1737620398033,0.00463929,3229.9,3229.8,41.41962]
[1737620402740,0.00463929,3229.9,3229.8,40.8]
[1737620402934,0.00463929,3229.9,3229.8,41.41962]
[1737620403635,0.00463929,3229.9,3229.8,40.8]
[1737620404434,2.43223112,3229.9,3229.5,0.507]
[1737620404628,0.61967,3229.6,3229.4,3.686]
[1737620404835,2.43223112,3229.9,3229.4,3.686]
[1737620405137,0.61965,3229.7,3229.5,40.8]
[1737620405332,0.00463929,3229.9,3229.5,40.8]
[1737620405531,0.61966,3229.6,3229.5,40.8]
[1737620408238,6.44286644,3229.6,3229.0,3.2078]
[1737620408435,0.4925,3229.5,3229.0,3.7036]
[1737620408630,0.4925,3229.5,3229.1,40.8]
[1737620408631,0.61975,3229.2,3229.1,40.8]
[1737620410439,4.72221447,3229.2,3229.1,40.8]
[1737620410647,0.61983,3228.7,3228.6,7.49324585]
[1737620410845,0.61983,3228.8,3228.5,3.7036]
[1737620411144,0.4855,3228.7,3228.5,3.7036]
[1737620411438,0.4855,3228.7,3228.5,4.32347]
[1737620411746,0.4855,3228.7,3228.5,3.7036]
[1737620412340,4.68826056,3228.6,3228.5,3.2078]
[1737620415238,4.06841056,3228.6,3228.5,3.2078]
[1737620415845,4.68826056,3228.6,3228.5,3.2078]
[1737620416236,4.68826056,3228.6,3228.4,40.80463929]
[1737620416237,0.61987,3228.5,3228.4,40.80463929]
[1737620417842,4.64623326,3228.5,3228.4,40.80463929]
[1737620418845,1.10534,3228.7,3228.4,40.80463929]
[1737620419239,3.99316692,3228.6,3228.4,40.80463929]
[1737620419440,3.99316692,3228.6,3228.4,41.42452929]
[1737620420845,3.99316692,3228.6,3228.4,40.80463929]
[1737620421151,3.99316692,3228.6,3228.5,0.4919]
[1737620421340,0.5056,3228.9,3228.5,0.4919]
[1737620421536,1.0067,3228.9,3228.8,0.61982]
[1737620422248,1.0067,3228.9,3228.5,0.9973]
[1737620422449,1.0067,3228.9,3228.7,0.61982]
[1737620422852,1.62651,3228.9,3228.6,0.61984]
[1737620423852,1.62651,3228.9,3228.5,0.9973]
[1737620424252,1.62651,3228.9,3228.6,0.61985]
[1737620425252,1.0067,3228.9,3228.5,0.9973]
[1737620425446,1.0067,3228.9,3228.8,0.61982]
[1737620425447,0.5011,3228.9,3228.8,0.61982]
[1737620425649,3.2078,3229.1,3228.5,0.9973]
[1737620426147,0.61979,3229.0,3228.7,0.61983]
[1737620426347,0.61979,3229.0,3228.6,0.61984]
[1737620426547,0.4828,3228.9,3228.7,0.61983]
[1737620426951,1.10261,3228.9,3228.6,0.61985]
[1737620427648,0.4828,3228.9,3228.6,0.61985]
[1737620428052,0.5118,3228.8,3228.6,0.61985]
[1737620428556,1.13162,3228.8,3228.6,0.61985]
[1737620428754,1.13162,3228.8,3228.5,0.9973]
[1737620428755,1.13163,3228.8,3228.5,1.61716]
[1737620429057,0.5118,3228.8,3228.5,0.9973]
[1737620429357,1.13163,3228.8,3228.5,1.11176]
[1737620429542,1.13163,3228.8,3228.5,0.4919]
[1737620429543,0.5118,3228.8,3228.5,0.4919]
[1737620429748,6.4060697,3228.7,3228.4,40.80463929]
[1737620429956,0.61987,3228.5,3228.4,0.00463929]
[1737620431053,4.73009961,3228.5,3228.4,0.00463929]
[1737620433153,0.5118,3228.8,3228.4,0.00463929]
[1737620433354,2.42759183,3229.4,3228.4,0.48853929]
[1737620433557,1.67374,3229.3,3229.0,0.61978]
[1737620434463,1.054,3229.3,3229.0,0.61978]
[1737620435451,2.42759183,3229.7,3229.0,0.61978]
[1737620435748,0.4968,3229.7,3229.6,0.61966]
[1737620435949,3.2078,3229.8,3229.2,3.2078]
[1737620436163,3.2078,3229.8,3229.6,0.61965]
[1737620436354,3.2078,3229.8,3229.7,41.41964]
[1737620436554,3.2078,3229.8,3229.7,40.8]
[1737620439965,3.2078,3229.8,3229.2,3.2078]
[1737620440358,3.2078,3229.8,3229.6,0.61964]
[1737620440559,3.2078,3229.8,3229.7,40.8]
[1737620441061,3.2078,3229.8,3229.2,3.2078]
[1737620441254,3.2078,3229.8,3229.7,0.61964]
[1737620441459,3.2078,3229.8,3229.7,41.41964]
[1737620441663,0.00463929,3229.9,3229.8,0.61962]
[1737620441860,0.00463929,3229.9,3229.8,1.61852]
[1737620442064,0.00463929,3229.9,3229.8,2.09842]
[1737620442669,0.00463929,3229.9,3229.7,44.0078]
[1737620442870,3.96226348,3229.9,3229.7,44.0078]
[1737620443072,1.4704,3229.8,3229.4,0.4978]
[1737620443265,1.4704,3229.8,3229.2,3.2078]
[1737620443570,4.57727419,3229.7,3229.4,0.61969]
[1737620443872,0.61967,3229.6,3229.3,0.61971]
[1737620444073,6.38521602,3229.7,3229.2,3.2078]
[1737620444266,2.42759183,3229.7,3229.4,0.61969]
[1737620444466,4.01488648,3229.6,3229.4,0.61969]
[1737620444879,4.01488648,3229.6,3229.5,0.61968]
[1737620445767,0.00463929,3229.9,3229.8,0.61962]
[1737620446570,0.00463929,3229.9,3229.8,41.41962]
[1737620453884,0.00463929,3229.9,3229.8,43.84721183]
[1737620454188,3.2078,3231.1,3230.9,0.6194]
[1737620454378,0.6194,3231.0,3230.7,0.61944]
[1737620455488,0.6194,3231.0,3230.8,0.61943]
[1737620455688,0.6194,3231.0,3230.7,0.61944]
[1737620456287,4.2541,3231.1,3230.5,0.00463929]
[1737620456288,0.61947,3230.6,3230.5,0.00463929]
[1737620456887,0.61946,3230.7,3230.5,0.00463929]
[1737620457185,4.62414293,3230.7,3230.5,0.62412929]
[1737620457392,0.524,3230.6,3230.5,0.00463929]
[1737620457587,0.524,3230.6,3230.5,0.62412929]
[1737620459194,0.524,3230.6,3230.5,0.00463929]
[1737620459690,1.14347,3230.6,3230.5,0.00463929]
[1737620459889,5.18300922,3230.6,3230.5,0.00463929]
[1737620460396,10.81840105,3230.6,3230.5,0.00463929]
[1737620460593,0.6196,3229.9,3229.2,4.05935589]
[1737620460895,0.5176,3229.8,3229.3,0.4967]
[1737620461197,0.61965,3229.7,3229.4,0.61968]
[1737620462398,3.47119183,3229.8,3229.3,0.4967]
[1737620462584,0.61966,3229.7,3229.4,0.61969]
[1737620462896,4.6336916,3229.7,3229.4,0.61969]
[1737620463591,4.0140316,3229.7,3229.4,0.61969]
[1737620463785,0.5173,3229.6,3229.5,0.61968]
[1737620466397,0.5173,3229.6,3229.5,41.41968]
[1737620467098,0.5176,3229.8,3229.7,0.61964]
[1737620467306,3.2078,3230.1,3229.9,0.61959]
[1737620467497,0.4955,3230.0,3229.9,0.61959]
[1737620470204,3.2078,3230.1,3230.0,0.61959]
[1737620471500,5.63539183,3230.1,3229.8,0.61961]
[1737620471708,0.4817,3230.0,3229.8,0.61961]
[1737620472006,4.00049467,3229.9,3229.6,0.61965]
[1737620472409,0.4827,3229.8,3229.6,0.61965]
[1737620472609,0.4945,3229.7,3229.6,0.61965]
[1737620472805,0.4945,3229.7,3229.5,41.41967]
[1737620472806,4.49499467,3229.7,3229.5,41.41967]
[1737620473009,4.49499467,3229.7,3229.2,4.06399518]
[1737620473308,0.61978,3229.0,3228.6,0.61985]
[1737620473508,2.91029183,3228.9,3228.7,40.8]
[1737620473705,6.91279671,3228.9,3228.7,40.8]
[1737620473907,2.91029183,3228.9,3228.7,40.8]
[1737620474110,3.82762,3228.8,3228.7,40.8]
[1737620474313,0.61987,3228.6,3228.4,3.2078]
[1737620474603,7.13612038,3228.5,3228.4,0.00463929]
[1737620475005,3.04747183,3228.5,3228.4,0.00463929]
[1737620475202,7.10026537,3228.5,3228.4,0.00463929]
[1737620475402,0.61995,3228.2,3227.9,3.2078]
[1737620475608,2.42759183,3228.0,3227.9,3.2078]
[1737620475807,2.42759183,3228.0,3227.9,44.0078]
[1737620476319,7.01748993,3228.0,3227.9,44.0078]
[1737620477306,7.01748993,3228.0,3227.9,40.8]
[1737620477909,6.39751993,3228.0,3227.6,0.00311708]
[1737620478102,2.42759183,3227.7,3227.6,0.00311708]
[1737620478509,7.03545121,3227.7,3227.6,41.42316708]
[1737620479012,7.03545121,3227.7,3227.6,40.80311708]
[1737620482712,4.60785938,3227.7,3227.6,40.80311708]
[1737620483513,4.60785938,3227.7,3227.6,41.42316708]
[1737620483717,0.5223,3228.1,3227.8,0.62]
[1737620483924,1.0164,3228.1,3227.6,40.80311708]
[1737620484110,4.62005554,3227.9,3227.6,40.80311708]
[1737620484309,0.61999,3227.9,3227.6,40.80311708]
[1737620484719,4.02891871,3227.8,3227.6,40.80311708]
[1737620485321,4.06968832,3227.9,3227.6,40.80311708]
[1737620485618,4.06968832,3227.7,3227.6,40.80311708]
[1737620485821,4.68967832,3227.9,3227.6,40.80311708]
[1737620486211,0.61999,3227.9,3227.6,40.80311708]
[1737620486413,4.04082786,3227.8,3227.6,40.80311708]
[1737620488227,4.04082786,3227.8,3227.6,41.42315708]
[1737620488615,4.04082786,3227.8,3227.6,40.80311708]
[1737620488813,4.04082786,3227.8,3227.6,41.42316708]
[1737620489313,4.04082786,3227.8,3227.6,40.80311708]
[1737620489314,2.42759183,3227.7,3227.6,40.80311708]
[1737620489513,3.04762183,3227.7,3227.6,40.80311708]
[1737620489714,6.38596621,3227.7,3227.6,0.00311708]
[1737620490524,7.00599621,3227.7,3227.6,0.00311708]
[1737620490721,0.62015,3227.1,3226.8,0.6202]
[1737620491021,0.62021,3226.8,3226.4,0.62027]
[1737620491209,2.42759183,3226.5,3226.4,0.62027]
[1737620491613,6.44744525,3226.8,3226.6,0.62024]
[1737620491809,2.42759183,3226.8,3226.7,0.62022]
[1737620492020,2.42759183,3226.8,3226.2,3.2078]
[1737620492222,4.04475875,3226.7,3226.5,0.62025]
[1737620492424,6.47235058,3226.8,3226.5,0.62025]
[1737620492617,4.04475875,3226.6,3226.5,0.62025]
[1737620493014,4.04475875,3226.7,3226.5,0.62025]
[1737620493218,0.62024,3226.6,3226.3,0.6203]
[1737620493419,2.42759183,3226.5,3226.3,0.6203]
[1737620494321,0.62031,3226.3,3226.0,0.5261]
[1737620494515,2.42759183,3226.1,3226.0,0.5261]
[1737620495219,2.42759183,3226.1,3225.8,3.82818]
[1737620495420,2.42759183,3226.1,3225.9,0.62036]
[1737620495617,2.42759183,3226.1,3225.8,3.2078]
[1737620495820,3.04794183,3226.1,3225.8,3.82819]
[1737620496214,4.10930604,3226.0,3225.8,3.82819]
[1737620496421,4.10930604,3226.0,3225.8,3.82818]
[1737620496721,4.10930604,3226.0,3225.9,40.8]
[1737620496921,4.72965604,3226.0,3225.9,40.8]
[1737620497223,4.10930604,3226.0,3225.9,40.8]
[1737620497420,4.72965604,3226.0,3225.9,40.8]
[1737620497717,4.10930604,3226.0,3225.9,40.8]
[1737620498121,4.72965604,3226.0,3225.9,40.8]
[1737620498819,5.25015604,3226.0,3225.9,40.8]
[1737620499325,0.62038,3225.9,3225.6,0.5066]
[1737620499515,2.42759183,3225.8,3225.6,0.5066]
[1737620499716,6.46502261,3225.8,3225.7,40.8]
[1737620502826,7.08541261,3225.8,3225.7,40.8]
[1737620503520,7.08541261,3225.8,3225.6,0.5066]
[1737620504224,7.08541261,3225.8,3225.6,41.3066]
[1737620504423,6.46502261,3225.8,3225.6,41.3066]
[1737620504624,6.46502261,3225.8,3225.6,41.92702]
[1737620504929,4.03743078,3225.8,3225.7,0.62041]
[1737620505233,4.06376766,3225.9,3225.7,0.62041]
[1737620505532,4.06376766,3226.0,3225.8,40.8]
[1737620506028,6.25572183,3226.1,3225.8,41.42039]
[1737620506234,4.06376766,3225.9,3225.8,41.42039]
[1737620506527,4.11127629,3226.0,3225.8,41.42039]
[1737620506731,6.25572183,3226.1,3225.8,41.42039]
[1737620506921,5.63539183,3226.1,3225.9,0.62037]
[1737620507224,5.63539183,3226.1,3225.8,41.42039]
[1737620507225,4.11127629,3226.0,3225.8,41.42039]
[1737620507926,4.73163629,3226.0,3225.8,40.8]
[1737620508128,4.11127629,3226.0,3225.8,40.8]
[1737620508521,4.73163629,3226.0,3225.8,40.8]
[1737620508826,4.11127629,3226.0,3225.8,40.8]
[1737620509029,4.73163629,3226.0,3225.8,40.8]
[1737620509723,0.62037,3225.9,3225.8,40.8]
[1737620509926,4.11127629,3226.0,3225.5,1.22624048]
[1737620510131,0.62043,3225.6,3225.5,1.22624048]
[1737620510322,2.95359183,3225.8,3225.4,3.2078]
[1737620510323,0.62045,3225.5,3225.4,3.2078]
[1737620510522,3.04804183,3225.5,3225.4,3.2078]
[1737620510728,7.02292343,3225.5,3225.4,3.2078]
[1737620511432,6.40247343,3225.5,3225.4,3.2078]
[1737620511630,0.5165,3225.7,3225.4,3.82827]
[1737620512129,3.94003209,3225.6,3225.4,3.82827]
[1737620512831,4.56048209,3225.6,3225.4,3.2078]
[1737620513924,3.94003209,3225.6,3225.4,3.2078]
[1737620514128,2.42759183,3225.8,3225.4,3.2078]
[1737620514328,3.04799183,3225.8,3225.4,3.2078]
[1737620514527,3.94575446,3225.7,3225.6,0.62043]
[1737620515227,5.63539183,3226.1,3225.4,3.2078]
[1737620515433,6.15499183,3226.1,3225.4,3.2078]
[1737620515622,2.42759183,3225.5,3225.4,3.2078]
[1737620516133,2.42759183,3225.8,3225.5,0.62045]
[1737620516434,4.64744182,3225.9,3225.5,0.62045]
[1737620516726,0.62038,3225.9,3225.6,0.62043]
[1737620517031,4.02706182,3225.8,3225.7,0.6204]
[1737620517432,4.11902152,3226.0,3225.4,3.2078]
[1737620517731,6.15499183,3226.1,3225.6,0.62042]
[1737620517931,0.62037,3226.0,3225.6,0.62042]
[1737620518237,4.11902152,3226.0,3225.4,3.2078]
[1737620518834,0.62038,3225.9,3225.6,0.62042]
[1737620519329,0.62038,3225.9,3225.4,3.2078]
[1737620519330,4.02721213,3225.8,3225.7,1.1071]
[1737620519526,6.77534183,3226.1,3225.8,0.62038]
[1737620519726,0.62045,3225.5,3225.4,3.2078]
[1737620519926,4.02721213,3225.8,3225.4,3.2078]
[1737620519927,0.62044,3225.6,3225.4,3.2078]
[1737620520136,0.62045,3225.5,3225.4,3.2078]
[1737620520320,4.09340693,3225.5,3225.4,3.2078]
[1737620520520,4.09340693,3225.7,3225.4,3.2078]
[1737620520725,3.04800183,3225.8,3225.5,0.62044]
[1737620520926,0.62045,3225.5,3225.4,3.2078]
[1737620521137,3.04804183,3225.5,3225.4,3.2078]
[1737620521534,3.57264183,3225.5,3225.4,3.2078]
[1737620522435,0.5246,3225.5,3225.4,3.2078]
[1737620522632,0.5108,3225.7,3225.4,3.2078]
[1737620522834,0.62045,3225.5,3225.4,3.2078]
[1737620523030,4.58080952,3225.5,3225.4,3.2078]
[1737620523231,0.62045,3225.5,3225.4,3.2078]
[1737620523731,3.04804183,3225.5,3225.4,3.2078]
[1737620523937,6.98782737,3225.5,3225.4,3.2078]
[1737620524634,0.62057,3224.9,3224.5,4.32533]
[1737620524931,0.62062,3224.6,3224.5,0.4969]
[1737620526136,4.74453897,3224.6,3224.5,40.8]
[1737620526533,0.62067,3224.4,3224.0,1.14444]
[1737620526733,2.42759183,3224.3,3224.0,1.14444]
[1737620526927,7.08117117,3224.3,3224.1,40.8]
[1737620527133,6.46049117,3224.3,3224.1,40.8]
[1737620527434,6.46049117,3224.3,3224.1,41.42071]
[1737620527735,4.03289934,3224.3,3224.2,0.5027]
[1737620528638,3.7026,3224.7,3224.5,0.62062]
[1737620528937,3.2078,3224.7,3224.2,0.5027]
[1737620529236,0.62073,3224.1,3223.9,3.2078]
[1737620529534,0.62076,3223.9,3223.6,0.4954]
[1737620529734,0.62079,3223.8,3223.7,40.8]
[1737620530035,4.67975033,3223.8,3223.7,40.8]
[1737620530932,4.06214183,3224.0,3223.7,40.8]
[1737620531338,4.11515041,3223.9,3223.7,41.91619]
[1737620531536,4.11515041,3223.9,3223.7,41.2954]
[1737620531734,4.73592041,3223.9,3223.7,41.2954]
[1737620531935,4.11515041,3223.9,3223.7,41.2954]
[1737620532141,4.11515041,3223.9,3223.7,40.8]
[1737620532438,4.73592041,3223.9,3223.7,40.8]
[1737620532638,4.11515041,3223.9,3223.7,40.8]
[1737620534836,4.11515041,3223.9,3222.0,3.2078]
[1737620534837,1.55199,3223.8,3222.0,3.2078]
[1737620535044,2.42759183,3222.1,3221.6,3.2078]
[1737620535235,2.42759183,3222.1,3221.6,3.6869]
[1737620535433,5.63539183,3222.4,3221.9,0.62113]
[1737620535742,3.2078,3222.4,3222.0,41.42112]
[1737620535941,5.63539183,3222.4,3222.0,40.8]
[1737620536242,2.42759183,3222.1,3222.0,40.8]
[1737620537244,3.04869183,3222.1,3222.0,40.8]
[1737620537838,3.2078,3222.4,3222.0,40.8]
[1737620537839,5.63539183,3222.4,3222.0,40.8]
[1737620538034,0.62108,3222.3,3222.0,40.8]
[1737620538235,4.11757513,3222.3,3222.0,40.8]
[1737620538438,2.42759183,3222.7,3222.0,44.0078]
[1737620538738,0.62102,3222.6,3222.1,0.4764]
[1737620538936,3.04865183,3222.4,3222.1,0.4764]
[1737620539137,0.62107,3222.3,3222.1,0.4764]
[1737620539344,0.6211,3222.2,3222.0,44.0078]
[1737620539549,4.12610101,3222.3,3222.0,44.0078]
[1737620539752,3.04864183,3222.4,3222.0,44.0078]
[1737620540242,4.74718101,3222.3,3222.0,44.0078]
[1737620540434,4.12610101,3222.3,3222.0,44.0078]
[1737620541035,4.74717101,3222.3,3222.0,44.0078]
[1737620541432,3.2078,3222.8,3222.0,44.0078]
[1737620541433,2.42759183,3222.7,3222.0,44.0078]
[1737620541633,0.62101,3222.6,3222.1,0.62109]
[1737620541846,0.62104,3222.5,3222.1,0.62109]
[1737620542142,2.42759183,3222.7,3222.0,44.0078]
[1737620542345,3.2078,3222.8,3222.0,3.2078]
[1737620542540,3.2078,3222.8,3222.5,0.62102]
[1737620542844,3.2078,3222.8,3222.6,41.2868]
[1737620543051,0.00465383,3223.0,3222.6,41.2868]
[1737620543550,4.61861823,3222.9,3222.6,41.2868]
[1737620543740,3.99765823,3222.9,3222.6,41.2868]
[1737620543940,0.62097,3222.8,3222.6,41.2868]
[1737620544243,2.43224566,3223.0,3222.6,40.8]
[1737620544548,4.57104028,3222.9,3222.6,41.421]
[1737620544745,3.95008028,3222.9,3222.7,0.62098]
[1737620544949,0.00465383,3223.0,3222.6,40.8]
[1737620545144,0.00465383,3223.0,3222.8,0.62096]
[1737620546044,0.00465383,3223.0,3222.9,0.62095]
[1737620546442,0.00465383,3223.0,3222.8,0.62096]
[1737620547445,0.00465383,3223.0,3218.4,1.31620296]
[1737620547446,3.99845651,3222.9,3221.8,3.2078]
[1737620547647,2.42759183,3222.7,3222.1,0.4852]
[1737620548152,3.2078,3222.3,3222.1,41.2852]
[1737620548352,3.2078,3222.3,3222.1,40.8]
[1737620548353,0.62108,3222.2,3222.1,40.8]
[1737620548548,4.74396374,3222.2,3222.1,40.8]
[1737620549551,4.12288374,3222.2,3222.1,40.8]
[1737620550251,4.74396374,3222.2,3222.1,40.8]
[1737620550447,6.25645183,3222.4,3222.1,41.42109]
[1737620550651,0.62108,3222.3,3222.1,40.8]
[1737620550852,0.61687867,3222.2,3222.1,40.8]
[1737620551550,3.99955611,3222.2,3222.1,0.6211]
[1737620551849,3.2078,3222.4,3222.2,0.62108]
[1737620552052,3.2078,3222.4,3222.3,41.42106]
[1737620552445,3.2078,3222.4,3222.3,40.8]
[1737620552855,0.62111,3222.1,3221.7,0.62117]
[1737620553355,0.6212,3221.6,3221.4,3.2078]
[1737620553655,2.42759183,3221.7,3221.4,3.2078]
[1737620553850,2.42759183,3221.7,3221.5,40.8]
[1737620553851,0.62121,3221.6,3221.5,40.8]
[1737620554051,3.99495393,3221.6,3221.5,40.8]
[1737620554249,4.61615393,3221.6,3221.5,40.8]
[1737620554447,3.99495393,3221.6,3221.5,40.8]
[1737620556257,0.4883,3221.9,3221.5,40.8]
[1737620556447,1.10945,3221.9,3221.5,40.8]
[1737620556646,4.05619036,3221.8,3221.5,40.8]
[1737620557151,4.05619036,3221.8,3221.5,44.0078]
[1737620557458,4.67735036,3221.8,3221.5,40.8]
[1737620557652,4.05619036,3221.8,3221.5,40.8]
[1737620557854,4.67736036,3221.8,3221.5,40.8]
[1737620558161,4.05619036,3221.8,3221.5,40.8]
[1737620558356,0.4883,3221.9,3221.5,40.8]
[1737620558654,1.10945,3221.9,3221.5,40.8]
[1737620559861,0.4883,3221.9,3221.5,41.42121]
[1737620560056,0.4883,3221.9,3221.5,40.8]
[1737620560264,0.4883,3221.9,3221.5,41.42121]
[1737620560561,3.82886,3222.4,3221.9,0.62114]
[1737620560860,3.95668694,3222.3,3222.0,0.5066]
[1737620561051,4.57776694,3222.3,3222.0,0.5066]
[1737620561254,3.2078,3222.4,3222.0,0.5066]
[1737620561454,3.82885,3222.4,3222.0,0.5066]
[1737620561758,3.2078,3222.4,3222.0,0.5066]
[1737620562060,3.82885,3222.4,3222.0,0.5066]
[1737620562458,3.2078,3222.4,3222.0,0.5066]
[1737620562756,3.2078,3222.4,3222.2,0.62108]
[1737620563160,3.2078,3222.8,3222.4,0.62102]
[1737620563461,7.21209197,3222.8,3222.3,0.4819]
[1737620563654,7.21209197,3222.8,3222.7,0.62098]
[1737620563959,0.00465383,3223.0,3222.8,0.62096]
[1737620564155,0.00465383,3223.0,3222.9,0.5023]
[1737620564462,3.21245383,3223.0,3222.7,40.8]
[1737620564657,9.60399676,3223.0,3222.7,40.8]
[1737620564964,0.62096,3222.8,3222.7,40.8]
[1737620565261,1.60546,3222.9,3222.7,40.8]
[1737620565465,0.9845,3222.9,3222.7,40.8]
[1737620565664,1.60545,3222.9,3222.7,40.8]
[1737620566158,0.9845,3222.9,3222.7,40.8]
[1737620566464,0.492,3222.9,3222.7,41.2889]
[1737620567258,3.21245383,3223.0,3222.7,41.2889]
[1737620567459,3.21245383,3223.0,3222.8,0.62096]
[1737620567762,3.83339383,3223.0,3222.7,41.7727]
[1737620568763,3.83339383,3223.0,3222.7,42.39368]
[1737620569062,3.83339383,3223.0,3222.7,41.7727]
[1737620569266,0.62095,3222.9,3222.7,0.9727]
[1737620569763,3.83339383,3223.0,3222.7,0.9727]
[1737620569959,3.21245383,3223.0,3222.7,0.4889]
[1737620570266,5.64004566,3223.0,3222.6,3.2078]
[1737620570458,0.621,3222.7,3222.3,0.62104]
[1737620570659,0.62101,3222.6,3222.3,0.62104]
[1737620570858,0.62101,3222.6,3222.2,0.5109]
[1737620570859,1.64271,3222.6,3222.4,41.42104]
[1737620571066,0.62099,3222.7,3222.5,0.62102]
[1737620571267,0.62098,3222.8,3222.6,0.621]
[1737620571569,4.02984798,3222.9,3222.8,0.62096]
[1737620571762,0.62095,3222.9,3222.7,0.62098]
[1737620571964,0.62097,3222.8,3222.6,0.62099]
[1737620572772,5.64004566,3223.0,3222.4,40.8]
[1737620573066,0.62096,3222.9,3222.7,0.62098]
[1737620573268,5.64004566,3223.0,3222.4,40.8]
[1737620573466,0.62095,3222.9,3222.6,0.62099]
[1737620574267,0.62095,3222.9,3222.4,40.8]
[1737620574467,0.62095,3222.9,3222.7,0.62097]
[1737620574667,3.21245383,3223.0,3222.4,40.8]
[1737620574871,0.62095,3222.9,3222.8,0.62096]
[1737620575179,3.83339383,3223.0,3222.8,0.62096]
[1737620575471,0.62559383,3223.0,3222.8,0.62096]
[1737620575862,0.00465383,3223.0,3222.9,0.62095]
[1737620577567,0.00465383,3223.0,3222.9,1.67215]
[1737620580673,0.62076,3223.9,3223.8,0.62076]
[1737620580966,0.62076,3223.9,3223.7,0.62078]
[1737620581166,0.62076,3223.9,3223.8,0.62077]
[1737620581468,3.82854,3224.0,3223.8,0.62077]
[1737620581670,3.2078,3224.0,3223.9,0.62075]
[1737620582263,3.2078,3224.0,3223.8,41.42075]
[1737620582467,3.2078,3224.0,3223.8,40.8]
[1737620582665,0.62075,3223.9,3223.8,40.8]
[1737620582868,6.46987281,3223.9,3223.6,0.00465383]
[1737620583070,0.62079,3223.7,3223.6,0.00465383]
[1737620583270,4.66304098,3223.9,3223.6,0.62544383]
[1737620583467,0.62076,3223.9,3223.7,0.62078]
[1737620583871,3.82855,3224.0,3223.7,0.62078]
[1737620584171,0.62075,3223.9,3223.7,0.62078]
[1737620584775,3.2078,3224.0,3223.6,0.00465383]
[1737620584972,3.2078,3224.0,3223.9,0.62075]
[1737620585975,0.00465383,3224.2,3224.1,0.62071]
[1737620590372,0.00465383,3224.2,3224.1,1.13221]
[1737620591680,2.43224566,3224.2,3223.6,3.21245383]
[1737620591876,0.62071,3224.1,3223.9,0.62074]
[1737620592074,0.4818,3224.1,3223.9,0.62074]
[1737620592479,1.10252,3224.1,3223.9,0.62074]
[1737620592779,1.10252,3224.1,3223.6,3.21245383]
[1737620592976,0.4818,3224.1,3223.8,0.62076]
[1737620593289,0.62075,3223.9,3223.7,0.62078]
[1737620593477,2.42759183,3223.9,3223.6,3.21245383]
[1737620593781,0.62079,3223.7,3223.6,3.21245383]
[1737620594683,0.62079,3223.7,3223.6,3.83326383]
[1737620595480,1.10518,3223.8,3223.7,0.62079]
[1737620596175,0.62079,3223.7,3223.6,3.21245383]
[1737620596482,4.66644757,3223.7,3223.6,3.21245383]
[1737620597181,7.25345757,3223.7,3223.3,40.8]
[1737620597379,3.04844183,3223.4,3223.3,40.8]
[1737620599983,2.42759183,3223.4,3223.3,40.8]
[1737620600284,3.2078,3223.7,3223.4,0.62084]
[1737620600285,0.62082,3223.6,3223.4,0.62084]
[1737620600485,0.62083,3223.5,3223.3,41.42086]
[1737620600686,1.11393,3223.5,3223.3,41.42086]
[1737620601280,0.4931,3223.5,3223.3,40.8]
[1737620601486,0.4931,3223.5,3223.4,0.62085]
[1737620602784,0.4931,3223.5,3223.3,41.42085]
[1737620602987,0.4931,3223.5,3223.4,0.62085]
[1737620604582,0.62085,3223.4,3223.3,40.8]
[1737620605190,0.62085,3223.4,3223.2,0.62088]
[1737620605490,1.11394,3223.5,3223.3,0.62086]
[1737620606188,0.62086,3223.4,3223.2,0.62088]
[1737620606488,1.11394,3223.5,3223.3,0.62087]
[1737620606683,0.62089,3223.2,3223.1,40.8]
[1737620607292,4.34119,3223.3,3223.1,40.8]
[1737620607591,0.62089,3223.2,3223.1,41.4209]
[1737620607894,0.62091,3223.1,3223.0,0.62092]
[1737620608084,1.11111,3223.1,3223.0,0.62092]
[1737620608890,0.4902,3223.1,3223.0,0.62092]
[1737620609291,1.11111,3223.1,3223.0,0.62092]
[1737620609594,0.4902,3223.1,3223.0,0.62092]
[1737620610394,1.11111,3223.1,3223.0,0.62092]
[1737620610593,0.4902,3223.1,3222.8,40.8]
[1737620610790,0.62095,3223.0,3222.9,0.62094]
[1737620610992,1.11112,3223.1,3223.0,0.62093]
[1737620612993,3.82868,3223.3,3222.8,40.8]
[1737620613194,3.82868,3223.3,3223.2,0.62089]
[1737620613591,3.2078,3223.3,3223.2,0.62089]
[1737620616698,0.62095,3222.9,3222.8,40.8]
[1737620616993,0.62106,3222.3,3222.1,1.12279]
[1737620617300,2.42759183,3222.2,3222.1,41.92279]
[1737620619691,3.04867183,3222.2,3222.1,41.92279]
[1737620619891,3.04867183,3222.2,3222.1,41.3017]
[1737620620098,3.04867183,3222.2,3222.1,41.9228]
[1737620620297,2.42759183,3222.2,3222.1,41.9228]
[1737620620500,2.43224566,3222.5,3222.1,41.3017]
[1737620620901,4.0759386,3222.4,3222.2,0.62108]
[1737620621702,4.6969886,3222.4,3222.3,0.62106]
[1737620622400,4.6969886,3222.4,3222.3,41.42106]
[1737620622600,4.0759386,3222.4,3222.3,41.42106]
[1737620622897,2.43224566,3222.5,3222.4,0.62104]